[Event "RUS-ch Men Rapid 2019"]
[Site "Sochi"]
[Date "2019.10.16"]
[Round "7.25"]
[White "Volovich, Vasily"]
[Black "Khegay, Dmitriy"]
[Result "0-1"]
[ECO "B07"]
[WhiteElo "2120"]
[BlackElo "2509"]
[Annotator "RC"]
[PlyCount "94"]
[EventDate "2019.10.15"]
[EventType "swiss"]
[EventCountry "RUS"]
[SourceTitle "playchess.com"]
[Source "ChessBase"]
[SourceQuality "1"]
[TimeControl "900+10"]

1. e4 {[%emt 0:00:00]} d6 {[%emt 0:00:00]} 2. d4 {[%emt 0:00:00]} Nf6 {[%emt 0:00:00]} 3. Nc3 {[%emt 0:00:00]} c6 {[%emt 0:00:00]} 4. a4 {[%emt 0:00:20]} Nbd7 {[%emt 0:00:09]} 5. Nf3 {[%emt 0:00:11]} e5 {[%emt 0:00:02]} 6. Be2 {[%emt 0:00:28]} Be7 {[%emt 0:00:02]} 7. O-O {[%emt 0:00:27]} O-O {[%emt 0:00:02]} 8. Re1 {[%emt 0:00:12]} b6 {[%emt 0:00:17]} 9. d5 {[%emt 0:01:19]} Bb7 {[%emt 0:00:12]} 10. dxc6 {[%emt 0:00:15]} Bxc6 {[%emt 0:00:01]} 11. Bb5 {[%emt 0:01:56]} Bb7 {[%emt 0:00:29]} 12. Bc4 {[%emt 0:01:35]} Rc8 {[%emt 0:00:30]} 13. Bd5 {[%emt 0:00:14]} Nxd5 {[%emt 0:00:21]} 14. Nxd5 {[%emt 0:00:11]} Bxd5 {[%emt 0:00:01]} 15. exd5 {[%emt 0:00:46]} f5 {[%emt 0:00:02]} 16. a5 {[%emt 0:00:49]} b5 {[%emt 0:00:09]} 17. a6 {[%emt 0:00:14]} Qc7 {[%emt 0:01:17]} 18. c3 {[%emt 0:00:12]} Nb6 {[%emt 0:00:02]} 19. Qb3 {[%emt 0:02:08]} Qc4 {[%emt 0:01:03]} 20. Qxc4 {[%emt 0:00:09]} Nxc4 {[%emt 0:00:21]} 21. Nd4 {[%emt 0:01:13]} exd4 {[%emt 0:00:13]} 22. Rxe7 {[%emt 0:00:03]} Rf7 {[%emt 0:00:08]} 23. Rxf7 {[%emt 0:00:31]} Kxf7 {[%emt 0:00:02]} 24. cxd4 {[%emt 0:00:17]} Nb6 {[%emt 0:00:03]} 25. Bf4 {[%emt 0:00:21]} Rd8 {[%emt 0:00:21]} 26. Rc1 {[%emt 0:03:08]} Nxd5 {[%emt 0:00:03]} 27. Bd2 {[%emt 0:00:12]} Ke6 {[%emt 0:00:09]} 28. Kf1 {[%emt 0:01:11]} Kd7 {[%emt 0:00:03]} 29. Ke2 {[%emt 0:00:12]} Rc8 {[%emt 0:00:35]} 30. Ra1 {[%emt 0:00:07]} Rc2 {[%emt 0:00:18]} 31. Rb1 {[%emt 0:00:46]} Rc6 {[%emt 0:00:07]} 32. Ra1 {[%emt 0:00:06]} Nc7 {[%emt 0:00:12]} 33. Kf3 {[%emt 0:00:28]} Rxa6 {[%emt 0:00:32]} 34. Rxa6 {[%emt 0:00:03]} Nxa6 {[%emt 0:00:01]} 35. Kf4 {[%emt 0:00:21]} Ke6 {[%emt 0:00:21]} 36. d5+ {[%emt 0:00:01]} Kxd5 {[%emt 0:00:31]} 37. Kxf5 {[%emt 0:00:01]} Nc5 {[%emt 0:00:01]} 38. Bc3 {[%emt 0:00:06]} g6+ {[%emt 0:00:02]} 39. Kf4 {[%emt 0:00:25]} b4 {[%emt 0:00:03]} 40. Bh8 {[%emt 0:00:09]} a5 {[%emt 0:00:03]} 41. Kg5 {[%emt 0:00:04]} Ne6+ {[%emt 0:00:47]} 42. Kh6 {[%emt 0:00:04]} Nd4 {[%emt 0:00:02]} 43. Bf6 {[%emt 0:00:29]} a4 {[%emt 0:00:15]} 44. Bg5 {[%emt 0:00:03]} b3 {[%emt 0:00:24]} 45. Bc1 {[%emt 0:00:06]} Ne2 {[%emt 0:00:02]} 46. Kxh7 {[%emt 0:00:10]} Nxc1 {[%emt 0:00:02]} 47. Kxg6 {[%emt 0:00:03]} a3 {[%emt 0:00:01]} 0-1

[Event "RUS-ch Men Rapid 2019"]
[Site "Sochi"]
[Date "2019.10.16"]
[Round "7.32"]
[White "Chos, Alexey"]
[Black "Nozdrachev, Vladislav"]
[Result "0-1"]
[ECO "C78"]
[WhiteElo "2296"]
[BlackElo "2494"]
[Annotator "RC"]
[PlyCount "118"]
[EventDate "2019.10.15"]
[EventType "swiss"]
[EventCountry "RUS"]
[SourceTitle "playchess.com"]
[Source "ChessBase"]
[SourceQuality "1"]
[TimeControl "900+10"]

1. e4 e5 2. Nf3 Nc6 3. Bb5 a6 4. Ba4 Nf6 5. O-O Bc5 6. Re1 b5 7. Bb3 d6 8. c3 O-O 9. d4 Bb6 10. h3 Bb7 11. dxe5 Nxe5 12. Nxe5 dxe5 13. Nd2 Qe7 14. Qf3 Nd7 15. Nf1 Nc5 16. Ng3 Nxb3 17. Nf5 Qe6 18. axb3 g6 19. Qg3 Kh8 20. Bh6 Rg8 21. Ne3 g5 22. Ng4 Rg6 23. Rad1 Rxh6 24. Nxh6 Qxh6 25. Qxe5+ Qg7 26. Qf5 Rf8 27. c4 Bc8 28. Qd5 Be6 29. Qc6 Qe5 30. cxb5 axb5 31. Rd3 Qxb2 32. Rf3 Qe5 33. Rd1 g4 34. hxg4 Bxg4 35. Qh6 Qg7 36. Qxg7+ Kxg7 37. Rg3 h5 38. Rd5 Kh6 39. Rxb5 Re8 40. Rc3 Ra8 41. Rc2 Be6 42. Kh2 Ra3 43. b4 h4 44. g3 Bxf2 45. gxh4 Bxh4 46. Rcc5 Ra2+ 47. Kh1 Bg4 48. Rc6+ Kg7 49. Rc3 Re2 50. Rbc5 Rxe4 51. Rxc7 Rxb4 52. R7c4 Rxc4 53. Rxc4 f5 54. Kg2 Kf6 55. Rc5 f4 56. Rc3 Ke5 57. Ra3 Be6 58. Ra5+ Bd5+ 59. Kh3 Be1 0-1

[Event "RUS-ch Men Rapid 2019"]
[Site "Sochi"]
[Date "2019.10.16"]
[Round "8.2"]
[White "Timofeev, Artyom"]
[Black "Rozum, Ivan"]
[Result "1/2-1/2"]
[ECO "A20"]
[WhiteElo "2595"]
[BlackElo "2599"]
[Annotator "ChessBase"]
[PlyCount "92"]
[EventDate "2019.10.15"]
[EventType "swiss"]
[EventCountry "RUS"]
[SourceTitle "playchess.com"]
[Source "ChessBase"]
[SourceQuality "1"]
[TimeControl "900+10"]

1. c4 {[%emt 0:00:00]} e5 {[%emt 0:00:00]} 2. e3 {[%emt 0:00:00]} d6 {[%emt 0:00:20]} 3. Nc3 {[%emt 0:00:00]} g6 {[%emt 0:00:04]} 4. g3 {[%emt 0:00:03]} Bg7 {[%emt 0:00:02]} 5. Bg2 {[%emt 0:00:03]} Nf6 {[%emt 0:00:39]} 6. Nge2 {[%emt 0:00:07]} O-O {[%emt 0:00:04]} 7. h3 {[%emt 0:00:10]} c6 {[%emt 0:01:22]} 8. d4 {[%emt 0:00:04]} exd4 {[%emt 0:00:02]} 9. Nxd4 {[%emt 0:00:07]} Nbd7 {[%emt 0:00:04]} 10. O-O {[%emt 0:00:06]} Nb6 {[%emt 0:00:21]} 11. Qe2 {[%emt 0:00:09]} d5 {[%emt 0:00:34]} 12. cxd5 {[%emt 0:00:03]} Nbxd5 {[%emt 0:00:04]} 13. Nxd5 {[%emt 0:00:10]} Nxd5 {[%emt 0:00:02]} 14. Rd1 {[%emt 0:00:03]} Qb6 {[%emt 0:00:32]} 15. Bxd5 {[%emt 0:00:35]} cxd5 {[%emt 0:00:05]} 16. Kh2 {[%emt 0:00:02]} Re8 {[%emt 0:02:06]} 17. Qf3 {[%emt 0:00:03]} Re4 {[%emt 0:00:49]} 18. Ne2 {[%emt 0:00:02]} Be6 {[%emt 0:00:19]} 19. Nf4 {[%emt 0:00:06]} Rd8 {[%emt 0:01:57]} 20. a4 {[%emt 0:00:10]} Rb4 {[%emt 0:01:58]} 21. a5 {[%emt 0:00:20]} Qb5 {[%emt 0:00:21]} 22. e4 {[%emt 0:00:11]} Rb3 {[%emt 0:00:39]} 23. Be3 {[%emt 0:00:08]} d4 {[%emt 0:01:21]} 24. Nxe6 {[%emt 0:00:03]} fxe6 {[%emt 0:00:03]} 25. Qg4 {[%emt 0:00:03]} Qd7 {[%emt 0:01:12]} 26. Rd2 {[%emt 0:02:25]} Qf7 {[%emt 0:00:42]} 27. e5 {[%emt 0:06:00]} Bxe5 {[%emt 0:00:34]} 28. a6 {[%emt 0:00:20]} bxa6 {[%emt 0:00:49]} 29. Bh6 {[%emt 0:00:59]} Rf3 {[%emt 0:00:46]} 30. Kg2 {[%emt 0:00:09]} Rf5 {[%emt 0:00:33]} 31. Qe4 {[%emt 0:00:03]} Rh5 {[%emt 0:01:15]} 32. g4 {[%emt 0:04:25]} Rxh6 {[%emt 0:00:02]} 33. Qxe5 {[%emt 0:00:01]} Qb7+ {[%emt 0:00:29]} 34. Kg3 {[%emt 0:00:04]} Qb3+ {[%emt 0:00:11]} 35. f3 {[%emt 0:00:01]} Rf8 {[%emt 0:00:09]} 36. Rf1 {[%emt 0:00:09]} g5 {[%emt 0:00:18]} 37. Qxd4 {[%emt 0:02:22]} Rhf6 {[%emt 0:00:05]} 38. Qe4 {[%emt 0:00:01]} R8f7 {[%emt 0:00:16]} 39. Kg2 {[%emt 0:00:16]} Kg7 {[%emt 0:00:01]} 40. Qe5 {[%emt 0:00:21]} Qb5 {[%emt 0:00:02]} 41. Re2 {[%emt 0:00:39]} Qxe5 {[%emt 0:00:09]} 42. Rxe5 {[%emt 0:00:01]} h6 {[%emt 0:00:02]} 43. Ra5 {[%emt 0:00:05]} Rb7 {[%emt 0:00:03]} 44. Rxa6 {[%emt 0:00:05]} Rxb2+ {[%emt 0:00:02]} 45. Rf2 {[%emt 0:00:01]} Rxf2+ {[%emt 0:00:14]} 46. Kxf2 {[%emt 0:00:02]} Rf8 {[%emt 0:00:39]} 1/2-1/2

[Event "RUS-ch Men Rapid 2019"]
[Site "Sochi"]
[Date "2019.10.16"]
[Round "8.3"]
[White "Apryshko, Gleb"]
[Black "Kokarev, Dmitry"]
[Result "0-1"]
[ECO "A00"]
[WhiteElo "2382"]
[BlackElo "2593"]
[Annotator "ChessBase"]
[PlyCount "84"]
[EventDate "2019.10.15"]
[EventType "swiss"]
[EventCountry "RUS"]
[SourceTitle "playchess.com"]
[Source "ChessBase"]
[SourceQuality "1"]
[TimeControl "900+10"]

1. g3 {[%emt 0:00:00]} g6 {[%emt 0:00:00]} 2. Bg2 {[%emt 0:00:00]} Bg7 {[%emt 0:00:00]} 3. Nf3 {[%emt 0:00:00]} c5 {[%emt 0:00:00]} 4. O-O {[%emt 0:00:00]} Nc6 {[%emt 0:00:00]} 5. c3 {[%emt 0:00:30]} e5 {[%emt 0:00:00]} 6. e4 {[%emt 0:00:56]} Nge7 {[%emt 0:00:04]} 7. a3 {[%emt 0:00:34]} d6 {[%emt 0:00:18]} 8. b4 {[%emt 0:00:51]} O-O {[%emt 0:00:04]} 9. d3 {[%emt 0:00:15]} h6 {[%emt 0:00:18]} 10. Be3 {[%emt 0:02:50]} b6 {[%emt 0:00:04]} 11. d4 {[%emt 0:00:01]} exd4 {[%emt 0:00:04]} 12. cxd4 {[%emt 0:00:01]} Bg4 {[%emt 0:00:03]} 13. h3 {[%emt 0:03:59]} Bxf3 {[%emt 0:00:19]} 14. Bxf3 {[%emt 0:00:02]} Nxd4 {[%emt 0:00:03]} 15. Ra2 {[%emt 0:00:03]} Nxf3+ {[%emt 0:00:09]} 16. Qxf3 {[%emt 0:00:01]} Nc6 {[%emt 0:00:13]} 17. Rd2 {[%emt 0:01:25]} cxb4 {[%emt 0:02:28]} 18. axb4 {[%emt 0:00:07]} Nxb4 {[%emt 0:00:02]} 19. Rfd1 {[%emt 0:00:40]} Qc8 {[%emt 0:00:10]} 20. Bf4 {[%emt 0:00:24]} Nc6 {[%emt 0:01:25]} 21. Bxd6 {[%emt 0:00:07]} Ne5 {[%emt 0:00:05]} 22. Qg2 {[%emt 0:01:33]} Re8 {[%emt 0:00:39]} 23. Na3 {[%emt 0:00:12]} Qc3 {[%emt 0:01:02]} 24. Kh1 {[%emt 0:01:51]} Qf3 {[%emt 0:00:49]} 25. Rd5 {[%emt 0:01:11]} a6 {[%emt 0:02:12]} 26. Qxf3 {[%emt 0:00:17]} Nxf3 {[%emt 0:00:02]} 27. Nc4 {[%emt 0:00:37]} b5 {[%emt 0:00:28]} 28. Nb6 {[%emt 0:00:02]} Ra7 {[%emt 0:00:02]} 29. Kg2 {[%emt 0:01:02]} Ne5 {[%emt 0:02:03]} 30. f4 {[%emt 0:00:18]} Nd7 {[%emt 0:00:02]} 31. Nxd7 {[%emt 0:00:08]} Rxd7 {[%emt 0:00:02]} 32. e5 {[%emt 0:00:04]} Rc8 {[%emt 0:00:18]} 33. R5d2 {[%emt 0:00:17]} Bf8 {[%emt 0:00:11]} 34. g4 {[%emt 0:00:11]} Rcd8 {[%emt 0:02:15]} 35. Kf3 {[%emt 0:00:10]} f5 {[%emt 0:00:01]} 36. gxf5 {[%emt 0:00:07]} gxf5 {[%emt 0:00:02]} 37. Rg1+ {[%emt 0:00:11]} Kf7 {[%emt 0:00:02]} 38. Rdg2 {[%emt 0:00:02]} Bxd6 {[%emt 0:01:43]} 39. Rg7+ {[%emt 0:00:00]} Ke6 {[%emt 0:00:01]} 40. R7g6+ {[%emt 0:00:14]} Kd5 {[%emt 0:00:02]} 41. Rd1+ {[%emt 0:00:11]} Kc5 {[%emt 0:00:01]} 42. Rc1+ {[%emt 0:00:22]} Kb4 {[%emt 0:00:01]} 0-1

[Event "RUS-ch Men Rapid 2019"]
[Site "Sochi"]
[Date "2019.10.16"]
[Round "8.4"]
[White "Bocharov, Dmitry"]
[Black "Khismatullin, Denis"]
[Result "1/2-1/2"]
[ECO "A20"]
[WhiteElo "2519"]
[BlackElo "2611"]
[Annotator "RC"]
[PlyCount "60"]
[EventDate "2019.10.15"]
[EventType "swiss"]
[EventCountry "RUS"]
[SourceTitle "playchess.com"]
[Source "ChessBase"]
[SourceQuality "1"]
[TimeControl "900+10"]

1. c4 {[%emt 0:00:14]} e5 {[%emt 0:00:01]} 2. g3 {[%emt 0:00:20]} Nf6 {[%emt 0:00:23]} 3. Bg2 {[%emt 0:00:03]} Nc6 {[%emt 0:00:01]} 4. Nc3 {[%emt 0:00:15]} Bb4 {[%emt 0:00:03]} 5. e4 {[%emt 0:01:12]} Bxc3 {[%emt 0:00:36]} 6. bxc3 {[%emt 0:00:08]} O-O {[%emt 0:00:05]} 7. Ne2 {[%emt 0:00:06]} d6 {[%emt 0:00:28]} 8. d3 {[%emt 0:00:10]} a6 {[%emt 0:00:51]} 9. a4 {[%emt 0:00:06]} Ne8 {[%emt 0:01:48]} 10. O-O {[%emt 0:00:21]} f5 {[%emt 0:00:02]} 11. exf5 {[%emt 0:01:13]} Bxf5 {[%emt 0:00:09]} 12. h3 h5 {[%emt 0:02:34]} 13. Kh2 {[%emt 0:05:44]} Nf6 {[%emt 0:00:58]} 14. Ng1 {[%emt 0:00:13]} Qd7 {[%emt 0:00:32]} 15. Bg5 {[%emt 0:00:16]} Rae8 {[%emt 0:00:31]} 16. Rb1 {[%emt 0:01:39]} Nd8 {[%emt 0:02:21]} 17. Bxf6 {[%emt 0:02:22]} Rxf6 {[%emt 0:00:10]} 18. Nf3 {[%emt 0:00:02]} Ne6 19. Rb2 {[%emt 0:02:26]} Nc5 {[%emt 0:03:35]} 20. d4 {[%emt 0:00:05]} Nd3 {[%emt 0:00:14]} 21. Rxb7 {[%emt 0:00:57]} Be4 {[%emt 0:01:33]} 22. Nxe5 {[%emt 0:00:10]} dxe5 {[%emt 0:00:45]} 23. Bxe4 {[%emt 0:00:14]} Nxf2 {[%emt 0:00:10]} 24. Bd5+ {[%emt 0:00:09]} Qxd5 {[%emt 0:00:35]} 25. cxd5 {[%emt 0:00:10]} Nxd1 {[%emt 0:00:02]} 26. Rxd1 {[%emt 0:00:02]} exd4 {[%emt 0:00:06]} 27. Rxc7 {[%emt 0:00:04]} Re2+ {[%emt 0:00:41]} 28. Kg1 {[%emt 0:00:19]} d3 {[%emt 0:00:00]} 29. Rxd3 {[%emt 0:00:10]} Re1+ {[%emt 0:00:09]} 30. Kg2 {[%emt 0:00:01]} Re2+ {[%emt 0:00:01]} 1/2-1/2

[Event "RUS-ch Men Rapid 2019"]
[Site "Sochi"]
[Date "2019.10.16"]
[Round "8.5"]
[White "Tsydypov, Zhamsaran"]
[Black "Oganian, Miran"]
[Result "0-1"]
[ECO "B94"]
[WhiteElo "2553"]
[BlackElo "2436"]
[Annotator "ChessBase"]
[PlyCount "95"]
[EventDate "2019.10.15"]
[EventType "swiss"]
[EventCountry "RUS"]
[SourceTitle "playchess.com"]
[Source "ChessBase"]
[SourceQuality "1"]
[TimeControl "900+10"]

1. e4 {[%emt 0:00:00]} c5 {[%emt 0:00:00]} 2. Nf3 {[%emt 0:00:05]} d6 {[%emt 0:00:04]} 3. d4 {[%emt 0:00:01]} cxd4 {[%emt 0:00:01]} 4. Nxd4 {[%emt 0:00:01]} Nf6 {[%emt 0:00:02]} 5. Nc3 {[%emt 0:00:01]} a6 {[%emt 0:00:01]} 6. Bg5 {[%emt 0:00:02]} Nbd7 {[%emt 0:00:01]} 7. Bc4 {[%emt 0:00:02]} Qb6 {[%emt 0:00:24]} 8. O-O {[%emt 0:00:04]} Qc5 {[%emt 0:00:46]} 9. Bd5 {[%emt 0:00:08]} e6 {[%emt 0:00:40]} 10. Re1 {[%emt 0:02:12]} Be7 {[%emt 0:01:00]} 11. Re3 {[%emt 0:00:59]} Nxd5 {[%emt 0:01:19]} 12. Nxd5 {[%emt 0:07:23]} Bxg5 {[%emt 0:00:18]} 13. Nxe6 {[%emt 0:00:26]} fxe6 {[%emt 0:00:59]} 14. Rc3 {[%emt 0:00:19]} Qa5 {[%emt 0:04:09]} 15. Nc7+ {[%emt 0:01:47]} Ke7 {[%emt 0:00:43]} 16. Nxa8 {[%emt 0:00:05]} Nc5 {[%emt 0:02:10]} 17. e5 {[%emt 0:00:04]} dxe5 {[%emt 0:00:26]} 18. a3 {[%emt 0:00:33]} Bd7 {[%emt 0:01:37]} 19. b4 {[%emt 0:00:17]} Qd8 {[%emt 0:00:06]} 20. bxc5 {[%emt 0:02:25]} Qxa8 {[%emt 0:00:50]} 21. Qd6+ {[%emt 0:00:01]} Ke8 {[%emt 0:00:03]} 22. c6 {[%emt 0:00:17]} Bxc6 {[%emt 0:00:15]} 23. Qxe6+ {[%emt 0:00:06]} Be7 {[%emt 0:00:11]} 24. Re1 {[%emt 0:00:17]} Rf8 {[%emt 0:00:26]} 25. Rxe5 {[%emt 0:00:24]} Rf7 {[%emt 0:00:08]} 26. Rce3 {[%emt 0:00:28]} Qd8 {[%emt 0:00:14]} 27. h3 {[%emt 0:00:04]} Kf8 {[%emt 0:00:55]} 28. Rd3 {[%emt 0:00:03]} Qc7 {[%emt 0:00:38]} 29. Rde3 {[%emt 0:00:07]} Qd7 {[%emt 0:00:14]} 30. Qc4 {[%emt 0:00:07]} Qd1+ {[%emt 0:00:21]} 31. Re1 {[%emt 0:00:08]} Qd2 {[%emt 0:00:12]} 32. R1e2 {[%emt 0:00:10]} Qd1+ {[%emt 0:00:16]} 33. Re1 {[%emt 0:00:03]} Qd6 {[%emt 0:00:05]} 34. Qg4 {[%emt 0:00:16]} Kg8 {[%emt 0:00:35]} 35. Qc4 {[%emt 0:00:13]} Bf8 {[%emt 0:00:18]} 36. Rf5 {[%emt 0:00:12]} Qg6 {[%emt 0:00:01]} 37. g4 {[%emt 0:00:00]} Bd7 {[%emt 0:00:15]} 38. Rf4 {[%emt 0:00:35]} Be6 {[%emt 0:00:16]} 39. Rxe6 {[%emt 0:00:27]} Rxf4 {[%emt 0:00:01]} 40. Qe2 {[%emt 0:00:10]} Qf7 {[%emt 0:00:10]} 41. Re3 {[%emt 0:00:05]} g6 {[%emt 0:00:18]} 42. Rc3 {[%emt 0:00:06]} b5 {[%emt 0:00:13]} 43. Qe3 {[%emt 0:00:02]} Rc4 {[%emt 0:00:04]} 44. Rd3 {[%emt 0:00:10]} Rc8 {[%emt 0:00:12]} 45. Qd2 {[%emt 0:00:05]} Bc5 {[%emt 0:00:14]} 46. Rd7 {[%emt 0:00:30]} Qe6 {[%emt 0:00:01]} 47. Rd3 {[%emt 0:00:16]} Rf8 {[%emt 0:00:04]} 48. Rd8 {[%emt 0:00:05]} 0-1

[Event "RUS-ch Men Rapid 2019"]
[Site "Sochi"]
[Date "2019.10.16"]
[Round "8.8"]
[White "Popov, Valerij"]
[Black "Musalov, Ruslan"]
[Result "0-1"]
[ECO "B39"]
[WhiteElo "2535"]
[BlackElo "2348"]
[Annotator "ChessBase"]
[PlyCount "84"]
[EventDate "2019.10.15"]
[EventType "swiss"]
[EventCountry "RUS"]
[SourceTitle "playchess.com"]
[Source "ChessBase"]
[SourceQuality "1"]
[TimeControl "900+10"]

1. c4 {[%emt 0:00:00]} c5 {[%emt 0:00:00]} 2. Nf3 {[%emt 0:00:02]} Nf6 {[%emt 0:00:00]} 3. d4 {[%emt 0:00:02]} cxd4 {[%emt 0:00:08]} 4. Nxd4 {[%emt 0:00:01]} Nc6 {[%emt 0:00:21]} 5. Nc3 {[%emt 0:00:03]} g6 {[%emt 0:00:02]} 6. e4 {[%emt 0:00:05]} Bg7 {[%emt 0:00:01]} 7. Be3 {[%emt 0:00:07]} Ng4 {[%emt 0:00:11]} 8. Qxg4 {[%emt 0:00:03]} Nxd4 {[%emt 0:00:02]} 9. Qd1 {[%emt 0:00:05]} Ne6 {[%emt 0:01:53]} 10. Qd2 {[%emt 0:00:09]} Qa5 {[%emt 0:00:30]} 11. Rc1 {[%emt 0:00:04]} d6 {[%emt 0:00:55]} 12. Be2 {[%emt 0:00:36]} Bd7 {[%emt 0:02:48]} 13. b3 {[%emt 0:00:13]} Bc6 {[%emt 0:00:24]} 14. Nd5 {[%emt 0:00:46]} Qxd2+ {[%emt 0:00:21]} 15. Kxd2 {[%emt 0:00:01]} Kd7 {[%emt 0:00:31]} 16. Bg4 {[%emt 0:00:28]} Rhf8 {[%emt 0:01:25]} 17. f4 {[%emt 0:01:27]} f5 {[%emt 0:00:08]} 18. exf5 {[%emt 0:00:17]} gxf5 {[%emt 0:00:02]} 19. Bf3 {[%emt 0:00:10]} Nd4 {[%emt 0:01:38]} 20. Bh5 {[%emt 0:04:56]} e6 {[%emt 0:01:05]} 21. Nc3 {[%emt 0:00:23]} Rac8 {[%emt 0:03:41]} 22. Rhf1 {[%emt 0:02:21]} a6 {[%emt 0:01:49]} 23. Kd3 {[%emt 0:02:57]} e5 {[%emt 0:00:06]} 24. Nd5 {[%emt 0:00:02]} e4+ {[%emt 0:00:21]} 25. Kd2 {[%emt 0:00:02]} Bxd5 {[%emt 0:00:21]} 26. cxd5 {[%emt 0:00:01]} Rc5 {[%emt 0:00:02]} 27. Be2 {[%emt 0:03:19]} Rfc8 {[%emt 0:00:20]} 28. Rc4 {[%emt 0:00:34]} Rxd5 {[%emt 0:00:14]} 29. Rxc8 {[%emt 0:00:07]} Kxc8 {[%emt 0:00:05]} 30. Bc4 {[%emt 0:00:02]} Rc5 {[%emt 0:00:16]} 31. Rd1 {[%emt 0:00:09]} d5 {[%emt 0:00:08]} 32. Bf1 {[%emt 0:00:02]} Rc2+ {[%emt 0:00:18]} 33. Ke1 {[%emt 0:00:01]} Nc6 {[%emt 0:00:10]} 34. Rxd5 {[%emt 0:00:03]} Rxa2 {[%emt 0:00:09]} 35. Rxf5 {[%emt 0:00:20]} Bc3+ 36. Kd1 Bd4 {[%emt 0:00:18]} 37. Bxd4 {[%emt 0:00:43]} Nxd4 {[%emt 0:00:01]} 38. Rc5+ {[%emt 0:00:20]} Kb8 {[%emt 0:00:01]} 39. b4 {[%emt 0:00:06]} e3 {[%emt 0:00:13]} 40. f5 {[%emt 0:00:09]} Rf2 {[%emt 0:00:16]} 41. Ke1 {[%emt 0:00:03]} Nc2+ {[%emt 0:00:11]} 42. Kd1 {[%emt 0:00:04]} Rxf1+ {[%emt 0:00:06]} 0-1

[Event "RUS-ch Men Rapid 2019"]
[Site "Sochi"]
[Date "2019.10.16"]
[Round "8.10"]
[White "Moiseenko, Vadim"]
[Black "Nazaretyan, Tigran"]
[Result "1-0"]
[ECO "B24"]
[WhiteElo "2532"]
[BlackElo "2297"]
[Annotator "ChessBase"]
[PlyCount "129"]
[EventDate "2019.10.15"]
[EventType "swiss"]
[EventCountry "RUS"]
[SourceTitle "playchess.com"]
[Source "ChessBase"]
[SourceQuality "1"]
[TimeControl "900+10"]

1. Nc3 {[%emt 0:00:00]} c5 {[%emt 0:00:18]} 2. e4 {[%emt 0:00:00]} Nc6 {[%emt 0:00:05]} 3. Bb5 {[%emt 0:00:00]} Nd4 {[%emt 0:00:04]} 4. Nf3 {[%emt 0:00:01]} a6 {[%emt 0:00:11]} 5. Bd3 {[%emt 0:00:03]} Nc6 {[%emt 0:00:02]} 6. O-O {[%emt 0:00:07]} d6 {[%emt 0:00:26]} 7. a3 {[%emt 0:00:42]} g6 {[%emt 0:00:29]} 8. Nd5 {[%emt 0:00:11]} Bg7 {[%emt 0:00:27]} 9. c3 {[%emt 0:00:02]} e6 {[%emt 0:00:50]} 10. Ne3 {[%emt 0:00:02]} Nge7 {[%emt 0:00:27]} 11. Bc2 {[%emt 0:00:02]} d5 {[%emt 0:00:10]} 12. d3 {[%emt 0:00:46]} d4 {[%emt 0:00:21]} 13. cxd4 {[%emt 0:00:43]} cxd4 {[%emt 0:00:04]} 14. Nc4 {[%emt 0:00:07]} b5 {[%emt 0:00:14]} 15. Ncd2 {[%emt 0:00:01]} e5 {[%emt 0:00:32]} 16. Nb3 {[%emt 0:00:42]} Qd6 {[%emt 0:00:48]} 17. a4 {[%emt 0:00:08]} Rb8 {[%emt 0:00:10]} 18. axb5 {[%emt 0:00:13]} axb5 {[%emt 0:00:09]} 19. Bd2 {[%emt 0:00:14]} O-O {[%emt 0:00:13]} 20. Rc1 {[%emt 0:00:06]} f5 {[%emt 0:01:06]} 21. Ne1 {[%emt 0:00:12]} fxe4 {[%emt 0:00:17]} 22. dxe4 {[%emt 0:00:02]} Be6 {[%emt 0:00:15]} 23. Nd3 {[%emt 0:00:06]} Kh8 {[%emt 0:00:43]} 24. Nbc5 {[%emt 0:00:05]} Bc4 {[%emt 0:02:07]} 25. Bb3 {[%emt 0:00:09]} Bxb3 {[%emt 0:00:20]} 26. Qxb3 {[%emt 0:00:02]} h6 {[%emt 0:01:33]} 27. Qe6 {[%emt 0:01:10]} Rf6 {[%emt 0:01:06]} 28. Qh3 {[%emt 0:00:15]} Rf7 {[%emt 0:02:19]} 29. Bxh6 {[%emt 0:00:03]} Bxh6 {[%emt 0:00:01]} 30. Qxh6+ {[%emt 0:00:02]} Rh7 {[%emt 0:00:01]} 31. Qg5 {[%emt 0:00:01]} Rh5 {[%emt 0:00:14]} 32. Qg4 {[%emt 0:00:04]} Rf8 {[%emt 0:01:08]} 33. Qe6 {[%emt 0:00:10]} Qxe6 {[%emt 0:00:07]} 34. Nxe6 {[%emt 0:00:01]} Rf6 {[%emt 0:00:31]} 35. Nc7 {[%emt 0:00:02]} b4 {[%emt 0:00:20]} 36. f3 {[%emt 0:00:42]} Rd6 {[%emt 0:00:55]} 37. Rc5 {[%emt 0:00:25]} Rd7 {[%emt 0:00:34]} 38. Ne8 {[%emt 0:00:10]} Rd8 {[%emt 0:01:04]} 39. Nf6 {[%emt 0:00:02]} Rh6 {[%emt 0:00:16]} 40. Rd1 {[%emt 0:00:27]} Kg7 {[%emt 0:00:08]} 41. Ng4 {[%emt 0:00:03]} Rh5 {[%emt 0:00:20]} 42. Kf2 {[%emt 0:00:41]} Kf7 {[%emt 0:00:09]} 43. Rdc1 {[%emt 0:00:31]} Ke6 {[%emt 0:00:16]} 44. Rxc6+ {[%emt 0:00:03]} Nxc6 {[%emt 0:00:00]} 45. Rxc6+ {[%emt 0:00:01]} Rd6 {[%emt 0:00:10]} 46. Rxd6+ {[%emt 0:00:09]} Kxd6 {[%emt 0:00:00]} 47. Nxb4 {[%emt 0:00:03]} Rh8 {[%emt 0:00:02]} 48. Nd3 {[%emt 0:00:01]} g5 {[%emt 0:00:29]} 49. h3 {[%emt 0:01:08]} Rc8 {[%emt 0:00:14]} 50. Ngxe5 {[%emt 0:00:29]} Rc2+ {[%emt 0:00:01]} 51. Kg3 {[%emt 0:00:52]} Ke6 {[%emt 0:00:11]} 52. Ng4 {[%emt 0:00:06]} Kd6 {[%emt 0:00:18]} 53. Ngf2 Kc7 {[%emt 0:00:04]} 54. Kg4 Kb6 55. Kxg5 {[%emt 0:00:17]} Kb5 {[%emt 0:00:01]} 56. h4 {[%emt 0:00:06]} Rc8 {[%emt 0:00:02]} 57. g4 {[%emt 0:00:39]} Rg8+ {[%emt 0:00:09]} 58. Kf4 {[%emt 0:00:02]} Rf8+ {[%emt 0:00:06]} 59. Kg3 {[%emt 0:00:02]} Kc4 {[%emt 0:00:00]} 60. g5 {[%emt 0:00:04]} Rb8 {[%emt 0:00:11]} 61. h5 {[%emt 0:00:04]} Rb3 {[%emt 0:00:01]} 62. g6 {[%emt 0:00:03]} Rb5 {[%emt 0:00:13]} 63. Kg4 {[%emt 0:00:03]} Rb7 {[%emt 0:00:21]} 64. h6 {[%emt 0:00:09]} Rb6 {[%emt 0:00:01]} 65. g7 1-0